lending/lending_fUSD_20240110
["ID","MTS","AMOUNT","RATE_DAILY","PERIOD"]
[311067289,1704891218416,-771.19,0.00035342,2]
[311067290,1704891218426,-524.56,0.00035342,2]
[311067291,1704891218437,-1055.12,0.00035342,2]
[311067292,1704891218447,-500.0,0.00035342,2]
[311067293,1704891218457,-620.01,0.00035342,2]
[311067294,1704891218468,-835.1,0.00035342,2]
[311067295,1704891218479,-1511.92,0.00035342,2]
[311067296,1704891218494,-1179.08,0.00035342,2]
[311067297,1704891218505,-1185.27,0.00035342,2]
[311067298,1704891218516,-1387.63,0.00035342,2]
[311067299,1704891218526,-500.0,0.00035342,2]
[311067300,1704891218536,-904.42,0.00035342,2]
[311067301,1704891218547,-1196.53,0.00035342,2]
[311067302,1704891218557,-525.95,0.00035342,2]
[311067303,1704891218567,-1787.03,0.00035342,2]
[311067304,1704891218579,-674.1,0.00035342,2]
[311067305,1704891218589,-755.38,0.00035342,2]
[311067306,1704891218600,-1077.63,0.00035342,2]
[311067307,1704891218610,-581.62,0.00035342,2]
[311067308,1704891218621,-1257.2,0.00035342,2]
[311067309,1704891218632,-1024.85,0.00035342,2]
[311067310,1704891218642,-836.69,0.00035342,2]
[311067311,1704891218652,-525.09,0.00035342,2]
[311067312,1704891218662,-782.38,0.00035342,2]
[311067313,1704891218673,-1749.35,0.00035342,2]
[311067314,1704891218683,-1000.33,0.00035342,2]
[311067315,1704891218694,-604.42,0.00035342,2]
[311067316,1704891218703,-878.75,0.00035342,2]
[311067317,1704891218714,-765.38,0.00035342,2]
[311067318,1704891218724,-679.72,0.00035342,2]
[311067319,1704891218739,-1881.36,0.00035342,2]
[311067320,1704891218749,-631.79,0.00035342,2]
[311067321,1704891218759,-500.0,0.00035342,2]
[311067322,1704891218770,-1166.65,0.00035342,2]
[311067323,1704891218780,-756.6,0.00035342,2]
[311067324,1704891218791,-2844.34,0.00035342,2]
[311067325,1704891218801,-641.96,0.00035342,2]
[311067326,1704891218812,-1044.01,0.00035342,2]
[311067327,1704891218821,-500.0,0.00035342,2]
[311067328,1704891218832,-1332.76,0.00035342,2]
[311067329,1704891218843,-1244.23,0.00035342,2]
[311067330,1704891218853,-729.63,0.00035342,2]
[311067331,1704891218863,-757.76,0.00035342,2]
[311067332,1704891218874,-500.0,0.00035342,2]
[311067333,1704891218884,-500.0,0.00035342,2]
[311067334,1704891218895,-1127.84,0.00035342,2]
[311067335,1704891218906,-1154.12,0.00035342,2]
[311067336,1704891218917,-551.43,0.00035342,2]
[311067337,1704891218927,-1044.13,0.00035342,2]
[311067338,1704891218938,-500.0,0.00035342,2]
[311067339,1704891218948,-1354.13,0.00035342,2]
[311067340,1704891218957,-16500.453216,0.00035342,2]
[311067341,1704891218968,-638.51,0.00035342,2]
[311067342,1704891218980,-862.28,0.00035342,2]
[311067343,1704891218993,-1181.63,0.00035342,2]
[311067344,1704891219003,-757.94,0.00035342,2]
[311067345,1704891219013,-1015.59,0.00035342,2]
[311067346,1704891219023,-823.4,0.00035342,2]
[311067347,1704891219033,-848.07,0.00035342,2]
[311067348,1704891219044,-783.14,0.00035342,2]
[311067349,1704891219055,-1634.17,0.00035342,2]
[311067350,1704891219064,-892.34,0.00035342,2]
[311067351,1704891219074,-500.0,0.00035342,2]
[311067352,1704891219084,-1731.94,0.00035342,2]
[311067353,1704891219094,-1300.74,0.00035342,2]
[311067354,1704891219104,-1118.35,0.00035342,2]
[311067355,1704891219115,-821.71,0.00035342,2]
[311067356,1704891219125,-1097.53,0.00035342,2]
[311067357,1704891219135,-1115.5,0.00035342,2]
[311067358,1704891219145,-799.47,0.00035342,2]
[311067359,1704891219155,-500.0,0.00035342,2]
[311067360,1704891219165,-1438.57,0.00035342,2]
[311067361,1704891219175,-1466.84,0.00035342,2]
[311067362,1704891219185,-652.51,0.00035342,2]
[311067363,1704891219194,-1106.08,0.00035342,2]
[311067364,1704891219204,-1166.35,0.00035342,2]
[311067365,1704891219213,-1804.0,0.00035342,2]
[311067366,1704891219223,-1196.42,0.00035342,2]
[311067367,1704891219235,-1134.06,0.00035342,2]
[311067368,1704891219244,-545.73,0.00035342,2]
[311067369,1704891219254,-848.12,0.00035342,2]
[311067370,1704891219263,-1566.38,0.00035342,2]
[311067371,1704891219272,-714.75,0.00035342,2]
[311067372,1704891219283,-907.54,0.00035342,2]
[311067373,1704891219292,-556.57,0.00035342,2]
[311067374,1704891219302,-924.42,0.00035342,2]
[311067375,1704891219312,-500.0,0.00035342,2]
[311067376,1704891219322,-2743.08,0.00035342,2]
[311067377,1704891219331,-500.0,0.00035342,2]
[311067378,1704891219342,-1841.24,0.00035342,2]
[311067379,1704891219352,-1407.91,0.00035342,2]
[311067380,1704891219474,-1648.35,0.00035342,2]
[311067381,1704891219489,-546.87,0.00035342,2]
[311067382,1704891219500,-574.07,0.00035342,2]
[311067383,1704891219510,-1615.48,0.00035342,2]
[311067384,1704891219520,-997.75,0.00035342,2]
[311067385,1704891219530,-555.68,0.00035342,2]
[311067386,1704891219540,-627.59,0.00035342,2]
[311067387,1704891219551,-783.23,0.00035342,2]
[311067388,1704891219562,-1687.92,0.00035342,2]
[311067389,1704891219572,-1436.16,0.00035342,2]
[311067390,1704891219582,-893.83,0.00035342,2]
[311067391,1704891219592,-608.29,0.00035342,2]
[311067392,1704891219602,-1132.03,0.00035342,2]
[311067393,1704891219611,-1380.57,0.00035342,2]
[311067394,1704891219621,-933.87,0.00035342,2]
[311067395,1704891219631,-500.0,0.00035342,2]
[311067396,1704891219640,-995.9,0.00035342,2]
[311067397,1704891219649,-957.42,0.00035342,2]
[311067398,1704891219659,-520.01,0.00035342,2]
[311067399,1704891219668,-895.94,0.00035342,2]
[311067400,1704891219678,-1856.22,0.00035342,2]
[311067401,1704891219688,-1480.74,0.00035342,2]
[311067402,1704891219697,-303.96745509,0.00035342,2]
[311067403,1704891219707,-776.38,0.00035342,2]
[311067404,1704891219716,-1298.12,0.00035342,2]
[311067405,1704891219726,-333.27,0.00035342,2]
[311067406,1704891219738,-1188.98,0.00035342,2]
[311067407,1704891219748,-791.87,0.00035342,2]
[311067408,1704891219757,-700.71,0.00035342,2]
[311067409,1704891219767,-577.69,0.00035342,2]
[311067410,1704891219777,-682.9,0.00035342,2]
[311067411,1704891219786,-923.76,0.00035342,2]
[311067412,1704891219795,-1290.28,0.00035342,2]
[311067413,1704891219805,-672.12,0.00035342,2]
[311067414,1704891219814,-694.02,0.00035342,2]
[311067415,1704891219823,-751.24,0.00035342,2]
[311067416,1704891219832,-1037.2,0.00035342,2]
[311067417,1704891219842,-791.74,0.00035342,2]
[311067418,1704891219851,-2135.41,0.00035342,2]
[311067419,1704891219860,-630.74,0.00035342,2]
[311067420,1704891219870,-184.36,0.00035342,2]
[311067421,1704891219880,-373.57942765,0.00035342,2]
[311067422,1704891219889,-1611.31,0.00035342,2]
[311067423,1704891219899,-1065.89,0.00035342,2]
[311067424,1704891219909,-500.0,0.00035342,2]
[311067425,1704891219919,-537.76,0.00035342,2]
[311067426,1704891219928,-1096.88,0.00035342,2]
[311067427,1704891219938,-1235.12,0.00035342,2]
[311067428,1704891219948,-508.12,0.00035342,2]
[311067429,1704891219958,-1351.54,0.00035342,2]
[311067430,1704891219967,-1332.96,0.00035342,2]
[311067431,1704891219977,-525.51,0.00035342,2]
[311067432,1704891219990,-2153.22,0.00035342,2]
[311067433,1704891220000,-894.32,0.00035342,2]
[311067434,1704891220010,-1551.48,0.00035342,2]
[311067435,1704891220020,-551.86,0.00035342,2]
[311067436,1704891220029,-1823.35,0.00035342,2]
[311067437,1704891220039,-656.22,0.00035342,2]
[311067438,1704891220048,-903.93,0.00035342,2]
[311067439,1704891220057,-784.54,0.00035342,2]
[311067440,1704891220066,-1466.91,0.00035342,2]
[311067441,1704891220075,-1006.56,0.00035342,2]
[311067442,1704891220084,-1655.17,0.00035342,2]
[311067443,1704891220093,-3133.81,0.00035342,2]
[311067444,1704891220103,-761.32,0.00035342,2]
[311067445,1704891220112,-1170.77,0.00035342,2]
[311067446,1704891220122,-533.08,0.00035342,2]
[311067447,1704891220132,-1368.59,0.00035342,2]
[311067448,1704891220142,-661.49,0.00035342,2]
[311067449,1704891220152,-1618.49,0.00035342,2]
[311067450,1704891220162,-8919.11,0.00035342,2]
[311067451,1704891220171,-696.22,0.00035342,2]
[311067452,1704891220180,-813.18,0.00035342,2]
[311067453,1704891220190,-916.52,0.00035342,2]
[311067454,1704891220200,-484.51,0.00035342,2]
[311067455,1704891220210,-1010.96,0.00035342,2]
[311067456,1704891220220,-669.44,0.00035342,2]
[311067457,1704891220229,-895.64,0.00035342,2]
[311067458,1704891220242,-5719.09,0.00035342,2]
[311067459,1704891220252,-3241.68,0.00035342,2]
[311067460,1704891220261,-1654.81,0.00035342,2]
[311067461,1704891220272,-2147.06,0.00035342,2]
[311067462,1704891220281,-4583.07,0.00035342,2]
[311067463,1704891220293,-4104.47,0.00035342,2]
[311067464,1704891220302,-1135.8,0.00035342,2]
[311067465,1704891220313,-4864.49,0.00035342,2]
[311067466,1704891220322,-1172.6,0.00035342,2]
[311067467,1704891220332,-1306.53,0.00035342,2]
[311067468,1704891220343,-605.42,0.00035342,2]
[311067469,1704891220357,-613.66,0.00035342,2]
[311067470,1704891220367,-3152.91,0.00035342,2]
[311067471,1704891220378,-1839.88,0.00035342,2]
[311067472,1704891220389,-848.46,0.00035342,2]
[311067473,1704891220400,-1217.95,0.00035342,2]
[311067474,1704891220410,-3087.19,0.00035342,2]
[311067475,1704891220420,-1243.05,0.00035342,2]
[311067476,1704891220432,-1107.32,0.00035342,2]
[311067477,1704891220443,-1973.9,0.00035342,2]
[311067478,1704891220453,-500.0,0.00035342,2]
[311067479,1704891220463,-500.0,0.00035342,2]
[311067480,1704891220473,-1702.03,0.00035342,2]
[311067481,1704891220491,-515.72,0.00035342,2]
[311067482,1704891220501,-998.38,0.00035342,2]
[311067483,1704891220515,-3061.74,0.00035342,2]
[311067484,1704891220525,-1068.18,0.00035342,2]
[311067485,1704891220535,-996.01,0.00035342,2]
[311067486,1704891220545,-3064.76,0.00035342,2]
[311067487,1704891220555,-1153.97,0.00035342,2]
[311067488,1704891220565,-6469.31,0.00035342,2]
[311067489,1704891220574,-20572.41,0.00035342,2]
[311067490,1704891220585,-508.77,0.00035342,2]
[311067491,1704891220594,-1211.96,0.00035342,2]
[311067492,1704891220603,-876.85,0.00035342,2]
[311067493,1704891220613,-749.11,0.00035342,2]
[311067494,1704891220623,-1516.45,0.00035342,2]
[311067495,1704891220634,-835.36,0.00035342,2]
[311067496,1704891220644,-500.0,0.00035342,2]
[311067497,1704891220653,-3428.01,0.00035342,2]
[311067498,1704891220663,-1411.74,0.00035342,2]
[311067499,1704891220672,-2414.62,0.00035342,2]
[311067500,1704891220682,-51777.21,0.00035342,2]
[311067501,1704891220691,-8935.6,0.00035342,2]
[311067502,1704891220711,-500.0,0.00035342,2]
[311067503,1704891220738,-28702.52,0.00035342,2]
[311067504,1704891220749,-1449.33,0.00035342,2]
[311067505,1704891220758,-1741.33,0.00035342,2]
[311067506,1704891220767,-729.81,0.00035342,2]
[311067507,1704891220776,-18242.51,0.00035342,2]
[311067508,1704891220785,-982.47,0.00035342,2]
[311067509,1704891220794,-3044.12,0.00035342,2]
[311067510,1704891220804,-1198.42,0.00035342,2]
[311067511,1704891220813,-7322.32,0.00035342,2]
[311067512,1704891220822,-669.65,0.00035342,2]
[311067513,1704891220832,-883.98,0.00035342,2]
[311067514,1704891220841,-936.43,0.00035342,2]
[311067515,1704891220850,-500.0,0.00035342,2]
[311067516,1704891220860,-1931.34,0.00035342,2]
[311067517,1704891220869,-5311.52,0.00035342,2]
[311067518,1704891220879,-591.04,0.00035342,2]
[311067519,1704891220888,-596.34,0.00035342,2]
[311067520,1704891220897,-1716.44,0.00035342,2]
[311067521,1704891220907,-756.46,0.00035342,2]
[311067522,1704891220917,-1935.34,0.00035342,2]
[311067523,1704891220926,-630.3,0.00035342,2]
[311067524,1704891220935,-11436.48,0.00035342,2]
[311067525,1704891220945,-1335.68,0.00035342,2]
[311067526,1704891220954,-5273.56,0.00035342,2]
[311067527,1704891220964,-896.69,0.00035342,2]
[311067528,1704891220973,-7205.25,0.00035342,2]
[311067529,1704891220986,-738.84,0.00035342,2]
[311067530,1704891220995,-1192.7,0.00035342,2]
[311067531,1704891221006,-962.89,0.00035342,2]
[311067532,1704891221015,-717.02,0.00035342,2]
[311067533,1704891221025,-1285.43,0.00035342,2]
[311067534,1704891221035,-6876.74,0.00035342,2]
[311067535,1704891221045,-1732.97,0.00035342,2]
[311067536,1704891221054,-2245.33,0.00035342,2]
[311067537,1704891221064,-1567.49,0.00035342,2]
[311067538,1704891221074,-790.0,0.00035342,2]
[311067539,1704891221083,-2499.19,0.00035342,2]
[311067540,1704891221093,-932.57,0.00035342,2]
[311067541,1704891221103,-6606.78,0.00035342,2]
[311067542,1704891221113,-2921.42,0.00035342,2]
[311067543,1704891221123,-783.63,0.00035342,2]
[311067544,1704891221132,-4128.32,0.00035342,2]
[311067545,1704891221142,-620.27565664,0.00035342,2]
[311067546,1704891221151,-7057.36,0.00035342,2]
[311067547,1704891221161,-682.44,0.00035342,2]
[311067548,1704891221170,-1293.22,0.00035342,2]
[311067549,1704891221180,-1047.14,0.00035342,2]
[311067550,1704891221190,-3328.34,0.00035342,2]
[311067551,1704891221200,-2896.37,0.00035342,2]
[311067552,1704891221209,-668.72,0.00035342,2]
[311067553,1704891221219,-3025.67,0.00035342,2]
[311067554,1704891221228,-1350.56,0.00035342,2]
[311067555,1704891221240,-2341.12,0.00035342,2]
[311067556,1704891221250,-953.47,0.00035342,2]
[311067557,1704891221260,-2098.62,0.00035342,2]
[311067558,1704891221271,-703.2,0.00035342,2]
[311067559,1704891221281,-1930.74,0.00035342,2]
[311067560,1704891221290,-5339.67,0.00035342,2]
[311067561,1704891221300,-503.67,0.00035342,2]
[311067562,1704891221309,-4486.53,0.00035342,2]
[311067563,1704891221319,-2153.92,0.00035342,2]
[311067564,1704891221328,-1333.7,0.00035342,2]
[311067565,1704891221337,-1093.38,0.00035342,2]
[311067566,1704891221351,-3990.83,0.00035342,2]
[311067567,1704891221360,-3222.77,0.00035342,2]
[311067568,1704891221370,-843.02,0.00035342,2]
[311067569,1704891221380,-915.67,0.00035342,2]
[311067570,1704891221389,-6104.89,0.00035342,2]
[311067571,1704891221399,-723.37,0.00035342,2]
[311067572,1704891221409,-1149.9,0.00035342,2]
[311067573,1704891221419,-5798.03,0.00035342,2]
[311067574,1704891221430,-550.5,0.00035342,2]
[311067575,1704891221440,-4625.49,0.00035342,2]
[311067576,1704891221450,-1882.58,0.00035342,2]
[311067577,1704891221460,-13391.47,0.00035342,2]
[311067578,1704891221470,-1438.47,0.00035342,2]
[311067579,1704891221480,-17056.02,0.00035342,2]
[311067580,1704891221493,-1223.46,0.00035342,2]
[311067581,1704891221503,-3391.89,0.00035342,2]
[311067582,1704891221513,-1903.64,0.00035342,2]
[311067583,1704891221523,-535.17,0.00035342,2]
[311067584,1704891221533,-924.6792707,0.00035342,2]
[311067585,1704891221566,-420.47620801,0.00035342,2]
[311067586,1704891221588,-570.35611864,0.00030684,2]
[311067587,1704891221602,-214.90388136,0.00030684,2]
[311067588,1704891221614,-1053.66,0.00031232,2]
[311067589,1704891221624,-49.07376989,0.00035342,2]
[311067590,1704891221653,-1487.52,0.00032054,2]
[311067591,1704891221664,-271.55957704,0.00032602,2]
[311067592,1704891221677,-4437.37042296,0.00032602,2]
[311067593,1704891221687,-53.5107514,0.00035342,2]
[311067594,1704891221698,-500.0,0.00035342,2]
[311067595,1704891221711,-53.30743368,0.00035342,2]
[311067596,1704891221725,-850.43256632,0.00035342,2]
[311067597,1704891221741,-1181.32,0.00035342,2]
[311067598,1704891221752,-105.54423778,0.00035342,2]
[311067599,1704891221766,-734.09504768,0.00035342,2]
[311067600,1704891221779,-2577.04071454,0.00035342,2]
[311067601,1704891221789,-897.9,0.00035342,2]
[311067602,1704891221800,-1323.99,0.00035342,2]
[311067603,1704891221821,-605.66,0.00035342,2]
[311067604,1704891221831,-1240.59,0.00035342,2]
[311067605,1704891221842,-1066.0,0.00035342,2]
[311067606,1704891221853,-304.45861619,0.00035342,2]
[311067607,1704891221867,-1433.40379592,0.00035342,2]
[311067608,1704891221879,-408.94612682,0.00035342,2]
[311067609,1704891221906,-219.94,0.0003232,2]
[311067610,1704891221917,-854.64,0.00032328,2]
[311067611,1704891221927,-731.64487666,0.00035342,2]
[311067612,1704891221940,-505.00658441,0.00035342,2]
[311067613,1704891221950,-327.97065006,0.00035342,2]
[311067614,1704891221968,-1194.15747333,0.00032328,2]
[311067615,1704891222000,-341.04,0.0003041,2]
[311067616,1704891222099,-680.3546727,0.00030136,2]
[311067617,1704891222113,-364.49491157,0.00030136,2]
[311067618,1704891222146,-1179.94407675,0.00030136,2]
[311067619,1704891222186,-6034.42652606,0.00030136,2]
[311067620,1704891222201,-995.72676107,0.00030136,2]
[311067621,1704891222216,-2778.98305185,0.00030136,2]
[311067622,1704891222229,-158.96,0.0003041,2]
[311067623,1704891222250,-785.26,0.00030958,2]
[311067624,1704891222262,-1053.66,0.00031506,2]
[311067625,1704891222273,-1088.21644836,0.00032328,2]
[311067626,1704891222296,-265.37607831,0.00032328,2]
[311067627,1704891222306,-46.12675461,0.00032328,2]
[311067628,1704891222320,-423.95581672,0.00032328,2]
[311067629,1704891223303,-405.50277568,0.000298,2]
[311067630,1704891223314,-405.37255056,0.00029898,2]
[311067631,1704891223324,-288.16237852,0.00030036,2]
[311067632,1704891223334,-11.78729524,0.00030135,2]
[311067633,1704891223348,-138.21270476,0.00030135,2]
[311067634,1704891223357,-150.0,0.00030135,2]
[311067635,1704891223367,-150.0,0.00030135,2]
[311067636,1704891223379,-1693.9,0.00030136,2]
[311067637,1704891223390,-151.0,0.0003041,7]
[311067638,1704891223400,-12033.93,0.0003041,2]
[311067639,1704891223413,-1693.9,0.0003041,2]
[311067640,1704891223424,-151.0,0.0003041,7]
[311067641,1704891223434,-500.0,0.00030684,2]
[311067642,1704891223445,-12033.93,0.00030684,2]
[311067643,1704891223456,-500.0,0.00030684,2]
[311067644,1704891223466,-151.0,0.00030684,7]
[311067645,1704891223478,-151.0,0.00030684,7]
[311067646,1704891223493,-151.0,0.00030688,7]
[311067647,1704891223504,-500.0,0.00030958,2]
[311067648,1704891223515,-1705.6400063,0.00030958,2]
[311067649,1704891223528,-10328.2899937,0.00030958,2]
[311067650,1704891223539,-500.0,0.00030958,2]
[311067651,1704891223549,-151.0,0.00030958,7]
[311067652,1704891223560,-248.403337,0.00031,7]
[311067653,1704891223569,-785.26,0.00031232,2]
[311067654,1704891223580,-500.0,0.00031232,2]
[311067655,1704891223590,-9229.90046031,0.00031232,2]
[311067656,1704891223603,-1595.74726531,0.00031232,2]
[311067657,1704891223615,-1208.28227438,0.00031232,2]
[311067658,1704891223625,-500.0,0.00031232,2]
[311067659,1704891223635,-785.26,0.00031506,2]
[311067660,1704891223646,-500.0,0.00031506,2]
[311067661,1704891223656,-9439.48066002,0.00031506,2]
[311067662,1704891223668,-2594.44933998,0.00031506,2]
[311067663,1704891223677,-500.0,0.00031506,2]
[311067664,1704891223687,-1053.66,0.0003178,2]
[311067665,1704891223697,-608.98586006,0.0003178,2]
[311067666,1704891223709,-176.27413994,0.0003178,2]
[311067667,1704891223718,-246.63712354,0.0003178,2]
[311067668,1704891223739,-253.36287646,0.0003178,2]
[311067669,1704891223749,-257.05267575,0.0003178,2]
[311067670,1704891223762,-1141.74796227,0.0003178,2]
[311067671,1704891223774,-2253.45,0.0003178,2]
[311067672,1704891223786,-794.73494601,0.0003178,2]
[311067673,1704891224287,-2992.69024854,0.0003178,2]
[311067674,1704891224299,-548.31571179,0.0003178,2]
[311067675,1704891224312,-683.84348786,0.0003178,2]
[311067676,1704891224432,-2439.59652341,0.0003178,2]
[311067677,1704891224445,-922.49844437,0.0003178,2]
[311067678,1704891224455,-500.0,0.0003178,2]
[311067679,1704891224466,-1053.66,0.00032054,2]
[311067680,1704891224477,-785.26,0.00032054,2]
[311067681,1704891224493,-500.0,0.00032054,2]
[311067682,1704891224504,-12033.93,0.00032054,2]
[311067683,1704891224515,-500.0,0.00032054,2]
[311067684,1704891224525,-1017.43742867,0.00032328,2]
[311067685,1704891224537,-1053.66,0.00032328,2]
[311067686,1704891224548,-785.26,0.00032328,2]
[311067687,1704891224558,-500.0,0.00032328,2]
[311067688,1704891224568,-2682.21643757,0.00032328,2]
[311067689,1704891224586,-1164.9428467,0.00032328,2]
[311067690,1704891224598,-2296.60753156,0.00032328,2]
[311067691,1704891224615,-5890.16318417,0.00032328,2]
[311067692,1704891224625,-500.0,0.00032328,2]
[311067693,1704891224636,-2547.75,0.00032602,2]
[311067694,1704891224646,-854.64,0.00032602,2]
[311067695,1704891224655,-7021.11,0.00032602,2]
[311067696,1704891224665,-1487.52,0.00032602,2]
[311067697,1704891224675,-1053.66,0.00032602,2]
[311067698,1704891224685,-785.26,0.00032602,2]
[311067699,1704891224695,-500.0,0.00032602,2]
[311067700,1704891224704,-12033.93,0.00032602,2]
[311067701,1704891224714,-4708.93,0.00032876,2]
[311067702,1704891224726,-2547.75,0.00032876,2]
[311067703,1704891224740,-854.64,0.00032876,2]
[311067704,1704891224749,-7021.11,0.00032876,2]
[311067705,1704891224759,-1487.52,0.00032876,2]
[311067706,1704891224769,-1053.66,0.00032876,2]
[311067707,1704891224779,-785.26,0.00032876,2]
[311067708,1704891224789,-500.0,0.00032876,2]
[311067709,1704891224798,-854.64,0.0003315,2]
[311067710,1704891224808,-2547.75,0.0003315,2]
[311067711,1704891224818,-4708.93,0.0003315,2]
[311067712,1704891224828,-7021.11,0.0003315,2]
[311067713,1704891224837,-1487.52,0.0003315,2]
[311067714,1704891224846,-1053.66,0.0003315,2]
[311067715,1704891224856,-785.26,0.0003315,2]
[311067716,1704891224866,-854.64,0.00033424,2]
[311067717,1704891224876,-2547.75,0.00033424,2]
[311067718,1704891224885,-4708.93,0.00033424,2]
[311067719,1704891224895,-7021.11,0.00033424,2]
[311067720,1704891224904,-1487.52,0.00033424,2]
[311067721,1704891224914,-1053.66,0.00033424,2]
[311067722,1704891224923,-854.64,0.00033698,2]
[311067723,1704891224932,-2547.75,0.00033698,2]
[311067724,1704891224941,-4708.93,0.00033698,2]
[311067725,1704891224952,-7021.11,0.00033698,2]
[311067726,1704891224961,-1487.52,0.00033698,2]
[311067727,1704891224971,-1053.66,0.00033698,2]
[311067728,1704891224981,-854.64,0.00033972,2]
[311067729,1704891224996,-4708.93,0.00033972,2]
[311067730,1704891225006,-2547.75,0.00033972,2]
[311067731,1704891225016,-7021.11,0.00033972,2]
[311067732,1704891225025,-1487.52,0.00033972,2]
[311067733,1704891225034,-1053.66,0.00033972,2]
[311067734,1704891225044,-854.64,0.00034246,2]
[311067735,1704891225054,-4708.93,0.00034246,2]
[311067736,1704891225064,-2547.75,0.00034246,2]
[311067737,1704891225074,-7021.11,0.00034246,2]
[311067738,1704891225084,-1487.52,0.00034246,2]
[311067739,1704891225094,-1053.66,0.00034246,2]
[311067740,1704891225104,-500.0,0.0003452,2]
[311067741,1704891225114,-854.64,0.0003452,2]
[311067742,1704891225124,-2547.75,0.0003452,2]
[311067743,1704891225134,-4708.93,0.0003452,2]
[311067744,1704891225144,-7021.11,0.0003452,2]
[311067745,1704891225154,-1487.52,0.0003452,2]
[311067746,1704891225164,-500.0,0.00034794,2]
[311067747,1704891225174,-854.64,0.00034794,2]
[311067748,1704891225183,-4708.93,0.00034794,2]
[311067749,1704891225193,-2547.75,0.00034794,2]
[311067750,1704891225203,-1487.52,0.00034794,2]
[311067751,1704891225212,-298.56,0.00035068,2]
[311067752,1704891225221,-854.64,0.00035068,2]
[311067753,1704891225231,-1530.40934994,0.00035342,2]
[311067754,1704891225244,-2765.04,0.00035342,2]
[311067755,1704891225254,-556.19,0.00035342,2]
[311067756,1704891225263,-656.06,0.00035342,2]
[311067757,1704891225273,-1414.02,0.00035342,2]
[311067758,1704891225282,-1721.84,0.00035342,2]
[311067759,1704891225291,-1734.45072101,0.00035342,2]
[311067760,1704891225304,-1122.57967321,0.00035342,2]
[311067761,1704891225320,-600.01292073,0.0003315,2]
[311067762,1704891225329,-4091.23960578,0.00035342,2]
[311067763,1704891225339,-500.0,0.00035342,2]
[311067764,1704891225352,-787.87,0.00035342,2]
[311067765,1704891225362,-1113.97,0.00035342,2]
[311067766,1704891225372,-1850.44,0.00035342,2]
[311067767,1704891225382,-875.41,0.00035342,2]
[311067768,1704891225391,-622.97,0.00035342,2]
[311067769,1704891225401,-975.55,0.00035342,2]
[311067770,1704891225412,-2699.57,0.00035342,2]
[311067771,1704891225422,-13325.5,0.00035342,2]
[311067772,1704891225433,-816.51,0.00035342,2]
[311067773,1704891225443,-506.73,0.00035342,2]
[311067774,1704891225452,-905.55,0.00035342,2]
[311067775,1704891225462,-602.85,0.00035342,2]
[311067776,1704891225472,-1571.82,0.00035342,2]
[311067777,1704891225482,-1172.85,0.00035342,2]
[311067778,1704891225496,-1103.19,0.00035342,2]
[311067779,1704891225506,-1902.92,0.00035342,2]
[311067780,1704891225515,-551.04,0.00035342,2]
[311067781,1704891225526,-719.09,0.00035342,2]
[311067782,1704891225536,-500.0,0.00035342,2]
[311067783,1704891225546,-4042.49,0.00035342,2]
[311067784,1704891225557,-711.14,0.00035342,2]
[311067785,1704891225567,-165.63490772,0.00035342,2]
[311067786,1704891225579,-864.08509228,0.00035342,2]
[311067787,1704891225589,-816.66,0.00035342,2]
[311067788,1704891225599,-750.11,0.00035342,2]